Cogmind - Beta 10.2 @@@ ROGUE MODE // 2021.01.06 @ 14:35:32 Player: Rushional Result: Self-destructed Performance ------------- Evolutions (1) 500 Regions Visited (2) 400 Robots Destroyed (13) 65 Value Destroyed (227) 227 Prototype IDs (0) 0 Alien Tech Used (0) 0 Bonus (0) 0 TOTAL SCORE: 1192 Bonus ------- None Cogmind --------- Core Integrity 149/400 Matter 270/300 Energy 61/100 System Corruption 0% Temperature Cool (61) Movement Core (100) Ox1 Location -9/Materials Parts ------- > --- POWER (1) -------- (None) > --- PROPULSION (2) --- (None) > --- UTILITY (4) ------ Small Storage Unit Visual Processing Unit Seismic Analyzer > --- WEAPON (2) ------- (None) > --- INVENTORY (6) ---- Improved Ion Engine Improved Ion Engine Wheel Wheel Peak State ------------ > --- POWER ------------ Improved Ion Engine > --- PROPULSION ------- Wheel Wheel > --- UTILITY ---------- Small Storage Unit Visual Processing Unit Improved Terrain Scanner Seismic Analyzer > --- WEAPON ----------- Beam Cannon Assault Rifle > --- INVENTORY -------- Improved Ion Engine Improved Ion Engine Wheel Wheel EM Pulse Gun Mining Laser [Rating: 12] Favorites ----------- Power Ion Engine Engine Ion Engine Propulsion Wheel Wheel Wheel Utility Small Storage Unit Device Improved Terrain Scanner Storage Small Storage Unit Processor Seismic Analyzer Protection Light Armor Plating Weapon Assault Rifle Energy Gun EM Pulse Gun Energy Cannon Beam Cannon Ballistic Gun Assault Rifle Special Weapon Mining Laser Build | -11 -10 -9 ------- Run | Scr Mat Mat Slots Evolved 2 | . . 2 Power . | . . . Propulsion . | . . . Utility 2 | . . 2 Weapon . | . . . Parts Attached 19 | 10 1 8 Power 2 | 1 . 1 Engine 2 | 1 . 1 Core . | . . . Reactor . | . . . Propulsion 4 | 4 . . Treads . | . . . Leg . | . . . Wheel 4 | 4 . . Hover . | . . . Flight . | . . . Utility 6 | 3 . 3 Device 2 | 2 . . Storage 1 | 1 . . Processor 2 | . . 2 Hackware . | . . . Protection 1 | . . 1 Artifact . | . . . Weapon 7 | 2 1 4 Energy Gun 2 | 1 . 1 Energy Cannon 1 | . 1 . Ballistic Gun 2 | 1 . 1 Ballistic Cannon . | . . . Launcher . | . . . Special Weapon 2 | . . 2 Impact Weapon . | . . . Slashing Weapon . | . . . Piercing Weapon . | . . . Special Melee Weapon . | . . . Unidentified Prototypes . | . . . Parts Lost 8 | . . 8 Power 1 | . . 1 Propulsion 2 | . . 2 Utility 1 | . . 1 Weapon 4 | . . 4 Highest Loss Streak 8 | . . 8 Average Slot Usage (%) 95 | . 100 93 Engine 11 | . 14 10 Wheel 23 | . 28 21 Device 11 | . 14 10 Storage 11 | . 14 11 Processor 12 | . . 16 Protection 1 | . . 1 Energy Cannon 11 | . 13 10 Ballistic Gun 11 | . 14 10 Naked Turns . | . . . Heaviest Build 20 | 14 15 20 Greatest Support 26 | 26 20 20 Greatest Overweight (x) 1 | 1 . . Average Overweight (x) . | . . . Largest Inventory Capacity 6 | 6 6 6 Average Capacity 5 | 5 6 6 Most Carried 6 | 6 6 6 Average Carried 5 | 3 6 5 Final Capacity 6 | 6 6 6 Final Carried 6 | 6 6 4 Class Distribution -------------------- 70% | Mutant 29% | Scavenger-Skirmisher Dominant Class ---------------- Mutant | -10/Materials Mutant | -9/Materials Resources | -11 -10 -9 ----------- Run | Scr Mat Mat Matter Collected 423 | 324 32 67 Remotely . | . . . Salvage Created 399 | 161 97 141 Parts 29 | 14 7 8 Haulers Intercepted 1 | . . 1 Recyclers Shooed . | . . . Parts Field Recycled . | . . . Retrieved Matter . | . . . Parts Self-Destructed . | . . . Prevented . | . . . Kills | -11 -10 -9 ------- Run | Scr Mat Mat Combat Hostiles Destroyed 5 | . 3 2 Guns 1 | . 1 . Cannons 4 | . 2 2 Classes Destroyed 6 | 3 1 2 Worker 2 | 2 . . Tunneler 3 | 3 . . Hauler 1 | . . 1 Recycler 1 | 1 . . Watcher 1 | . . 1 Grunt 5 | . 3 2 Best Kill Streak 6 | 6 3 2 Combat Bots Only 3 | . 3 2 Max Kills in Single Turn 2 | 2 1 1 Gunslinging . | . . . Exploded . | . . . Melee . | . . . Uniques/NPCs Destroyed . | . . . Combat | -11 -10 -9 -------- Run | Scr Mat Mat Damage Taken 750 | . 68 682 Core 251 | . . 251 Absorbed by Shields . | . . . Core Remaining (%) 100 | 100 100 . Volleys Fired 37 | 8 8 21 Largest 2 | 2 2 2 Hottest 120 | 60 80 120 Shots Fired 70 | 16 16 38 Gun 45 | 16 8 21 Cannon 23 | . 8 15 Launcher . | . . . Special 2 | . . 2 Kinetic 35 | 8 8 19 Thermal 25 | . 8 17 Explosive . | . . . Electromagnetic 10 | 8 . 2 Robot Hit Streak 12 | 4 6 12 Robot Miss Streak 2 | 2 2 2 Penetration Max . | . . . Secondary Targets . | . . . Shots Hit Robots 45 | 8 10 27 Core Hits 19 | 7 4 8 Critical Hits . | . . . Critical Kills . | . . . Critical Parts Destroyed . | . . . Melee Attacks . | . . . Impact . | . . . Slashing . | . . . Piercing . | . . . Sneak Attacks . | . . . Combat Hostiles . | . . . Follow-up Attacks . | . . . Damage Inflicted 690 | 157 136 397 Guns 447 | 157 66 224 Cannons 243 | . 70 173 Explosions . | . . . Melee . | . . . Ramming . | . . . Kinetic 356 | 90 66 200 Thermal 243 | . 70 173 Explosive . | . . . Electromagnetic 91 | 67 . 24 Impact . | . . . Slashing . | . . . Piercing . | . . . Highest Corruption . | . . . Average Corruption . | . . . Corruption Purged . | . . . Overload Shots . | . . . Overflow Damage 11 | . . 11 Projectiles 11 | . . 11 Explosions . | . . . Melee . | . . . Knockbacks . | . . . Impact . | . . . Kinetic . | . . . Secondary . | . . . Self-Inflicted Damage . | . . . Shots . | . . . Rammed . | . . . Targets Rammed . | . . . Kicked . | . . . Crushed . | . . . Highest Temperature 108 | . 96 108 Average Temperature 40 | . 44 38 Received Heat Transfer 189 | . 36 153 Siege Activations . | . . . Robots Corrupted . | . . . Combat Hostiles . | . . . Parts Fried . | . . . Impact Corruptions . | . . . Robots Melted . | . . . Combat Hostiles . | . . . Parts Melted 1 | . 1 . Heat Transferred 518 | . 148 370 Parts Sabotaged . | . . . Parts Stolen . | . . . Parts Stripped . | . . . Power Chain Reactions . | . . . Missiles Intercepted . | . . . Alert | -11 -10 -9 ------- Run | Scr Mat Mat Peak Influence 109 | 30 96 109 Initial 40 | . 19 40 Average 58 | 9 43 77 Maximum Alert Level . | . . . Low Security (%) 100 | 100 100 100 Level 1 . | . . . Level 2 . | . . . Level 3 . | . . . Level 4 . | . . . Level 5 . | . . . High Security . | . . . Max Security . | . . . Squads Dispatched 2 | . 1 1 Investigation 1 | . 1 . Extermination . | . . . Reinforcement 1 | . . 1 Assault . | . . . Garrison . | . . . Intercept . | . . . Construction Impeded . | . . . Haulers Reinforced . | . . . Stealth | -11 -10 -9 --------- Run | Scr Mat Mat Distress Signals . | . . . Communications Jammed . | . . . Distress Signals . | . . . Times Spotted 14 | . 3 11 Peak Tracking Total 7 | . 3 7 Tactical Retreats . | . . . Traps | -11 -10 -9 ------- Run | Scr Mat Mat Traps Triggered 1 | . 1 . Indirectly . | . . . Trap Hack Attempts . | . . . Triggered . | . . . Disarmed . | . . . Reprogrammed . | . . . Reused . | . . . Traps Extracted . | . . . Installed . | . . . Triggered . | . . . Machines | -11 -10 -9 ---------- Run | Scr Mat Mat Machines Disabled 1 | . . 1 Max in Single Turn 1 | . . 1 Machines Sabotaged . | . . . Garrisons Compromised . | . . . Overloaded Fab Kills . | . . . Fab Network Shutdowns . | . . . Hacking | -11 -10 -9 --------- Run | Scr Mat Mat Machines Accessed 3 | . 2 1 Terminals 2 | . 1 1 Fabricators . | . . . Repair Stations . | . . . Recycling Units 1 | . 1 . Scanalyzers . | . . . Garrison Access . | . . . Total Hacks 5 | . 4 1 Successful 4 | . 3 1 Failed 1 | . 1 . Catastrophic . | . . . Database Lockouts . | . . . Manual 8 | . 2 6 Terminals 3 | . 2 1 Fabricators . | . . . Repair Stations . | . . . Recycling Units 2 | . 2 . Scanalyzers . | . . . Garrison Access . | . . . Terminal Hacks 2 | . 1 1 Branch Access Points 1 | . 1 . Alert Level 1 | . . 1 Fabricator Hacks . | . . . Repair Station Hacks . | . . . Recycling Unit Hacks 2 | . 2 . Process 1 | . 1 . Retrieve Matter 1 | . 1 . Scanalyzer . | . . . Garrison Access Hacks . | . . . Unauthorized Hacks . | . . . Terminals . | . . . Fabricators . | . . . Repair Stations . | . . . Recycling Units . | . . . Scanalyzers . | . . . Garrison Access . | . . . Data Cores Recovered . | . . . Used . | . . . Hacking Detections 4 | . 2 2 Full Trace Events . | . . . Feedback Events . | . . . Feedback Blocked . | . . . Robot Schematics Acquired . | . . . Robots Built . | . . . Matter . | . . . Time . | . . . Total Robot Build Rating . | . . . Part Schematics Acquired . | . . . Parts Built . | . . . Matter . | . . . Time . | . . . Total Part Build Rating . | . . . Parts Repaired . | . . . Time . | . . . Parts Recycled . | . . . Recycled Matter 122 | . 122 . Retrieved Matter 122 | . 122 . Retrieved Components . | . . . Parts Scanalyzed . | . . . Part Schematics Acquired . | . . . Parts Damaged . | . . . Bothacking | -11 -10 -9 ------------ Run | Scr Mat Mat Used RIF Installer . | . . . Robots Hacked . | . . . Non-combat . | . . . Combat . | . . . Robot Hacks Applied . | . . . Relay Couplers Released . | . . . Robots Rewired . | . . . Allies Hacked . | . . . Hacks Repelled . | . . . Allies | -11 -10 -9 -------- Run | Scr Mat Mat Total Allies . | . . . Largest Group . | . . . Highest-Rated Group . | . . . Highest-Rated Ally . | . . . Total Orders . | . . . Ally Attacks . | . . . Total Damage . | . . . Kills . | . . . Allies Corrupted . | . . . Allies Melted . | . . . Intel | -11 -10 -9 ------- Run | Scr Mat Mat Robot Analysis Total . | . . . Derelict Logs Recovered . | . . . Drone Launches . | . . . Drone Recoveries . | . . . Exploration | -11 -10 -9 ------------- Run | Scr Mat Mat Turns Passed 651 | 114 136 401 Spaces Moved 366 | 81 123 162 Core 10 | 10 . . Treads . | . . . Legs . | . . . Wheels 356 | 71 123 162 Hover . | . . . Flight . | . . . Fastest Speed 50 | 50 80 80 Average Speed 80 | 80 80 80 Slowest Speed 90 | 90 80 80 Overloaded Moves . | . . . Propulsion Burnouts . | . . . Robots Hopped . | . . . Cave-ins Triggered . | . . . Exploration Rate (%) 12 | 5 18 13 Regions Visited 2 Branch Regions . Pre-discovered Areas . | . . . Known Exits Taken . | . . . Unknown Exits Taken 2 | 1 1 . Scrap Searched . | . . . Spaces Dug 1 | . . 1 Terrain Destroyed 2 | . . 2 Melee . | . . . Projectile 2 | . . 2 AOE . | . . . Terrain Rammed . | . . . Walls Destroyed . | . . . Machines Disabled . | . . . Actions | -11 -10 -9 --------- Run | Scr Mat Mat Total 646 | 111 145 390 Wait 203 | . 10 193 Move 364 | 80 122 162 Hop . | . . . Pick Up 10 | 7 1 2 Fast Attach 13 | 9 1 3 Attach 3 | . . 3 Detach 4 | 2 1 1 Swap 3 | 1 . 2 Drop 9 | 4 2 3 Fire 37 | 8 8 21 Melee . | . . . Ram . | . . . Kick . | . . . Crush . | . . . Escape Stasis . | . . . Rewire . | . . . Trap . | . . . Miscellaneous . | . . . Route ------- -11/Scrapyard -10/Materials (discovered 2 exits: *Mat / Min) -9/Materials History --------- Turn | Location | Event 4 | -11/Scrapyard | Discovered new exit (range 13) 115 | -11/Scrapyard | Entered Materials 245 | -10/Materials | Discovered new exit (range 5) 250 | -10/Materials | Identified exit to Mines 251 | -10/Materials | Entered another Materials area 251 | -9/Materials | Evolved 2 slots: Utility x2 310 | -9/Materials | Build established: Mutant 648 | -9/Materials | Core integrity fell below 50% 652 | -9/Materials | Self-destructed Last Messages --------------- 00466_ Dropped Lgt. Armor Plating. 00467_ Acquired Visual Processing Unit. 00481_ Acquired 10 matter. 00484_ K-01 Serf collects debris. 00604_ O-16 Technician: "IFF HANDSHAKE FAILED. SECURING TERMINAL." 00607_ ALERT: Hostiles spotted, dispatching reinforcements to Terminal M003. 00612_ Connecting with Terminal... >>Alert(Check) Current Alert Level: Low Security 00630_ Destroyed Imp. Ion Engine. 00630_ Wheel destroyed. 00633_ Beam Cannon destroyed. 00639_ Imp. Terrain Scanner destroyed. 00640_ Imp. Ion Engine destroyed. 00645_ Mining Laser destroyed. 00648_ G-34 Mercenary destroyed. 00649_ Assault Rifle destroyed. 00650_ Wheel destroyed. 00651_ EM Pulse Gun destroyed. Map ----- +----------------------------------------------------+ | ??????????#???????????????????????????? | | ?#????????????????????????????????????? | | ?#?? ??????? ?????????????????????????? | | ????? ???????????####?#???????????????? | | ??????? ??# ???? ?????????????????? | | ?#? ???????????? ?????????????????? | | ?#? ? ? ? ?????? ?????????????????? | | ?? ??? ???#??##? ???#?????????????? | | ?##? ???? ? #???# ##???#????#???#???? | | ##?? ?? ?# ?#??# #?#?##?#??????????? | | ####?###???# #???# #?? ????? ??????? | | #?##########+##### #?? ???? ????????? | | ##### # #? ??? ??????????? | | ???## # # ?? ?????? #???? | | ##### """"" # # ????????????????? | | """"" + /???? ??? ??????#? | | # """"" # #?######???#??#??#? | | """ ##########+### ### #????????#?# | | """ ###??#?## ##?????????? | | """ ###?#?### T #??????#??#? | | """ #??#?#??########+## #?????#????? | | ###?###?#? ? ??## #######?????? | | #??#??#?# ??"?"????# # ? ?#??? | | #####??????## ??""?????#Y g ""?? ????? | | ##??####?#?## ??"??????#%lY ???? ??#??? | | ?#####?####?#?" ????#=@#????????#??? | | ##?###??####??Y ?? ???####???????????? | | ##?#????####??" ??? #??#? ??????????? | | #?#??#?????#? ?? ???????#?? ??? ????? | | ##?##?#?#???###?#???????????? ?????#??? | | ???#???#?#?#???#???????#?#??? ? ?????# | | ?#?##?#?##??#####??#??#???????????##??? | | ????#?#????#?#????????????#?#???????#?? | | ?#?#???#????????#??#??????#???????#???? | | ?#???#?#?????#???#????#?#?????????????? | | ???###??#????#??#??????????????#?#????? | | ??????????????#????#???????#?##???#?#?? | | ??????#????????????##?????????????????? | | ?????????????????#???#??????????#?????? | | | | | | | | | | | | | | | | | | | | | | | +----------------------------------------------------+ Best States ------------- Heat Dissipation 28 Energy Generation 12 Energy Capacity 265 Matter Stores 300 Matter Capacity 300 Sight Range 18 Terrain Scan Range 16 Terrain Scan Density 60 Armor Coverage 150 Evasion (%) 44 Item Schematics ----------------- None Robot Schematics ------------------ None Fabricated ------------ Nothing Alien Tech Used ----------------- None Achievements -------------- None Challenges ------------ None Game ------ Seed PowerCloakingCarapace Manual? 0 Play Time 00:25:22 Cumulative 20.9 hours Start 2021.01.06 @ 04:14:43 End 2021.01.06 @ 14:35:32 Sessions 2 Manual Loads 0 Difficulty Rogue Special Mode None Game No. 8 Rogue 8 Adventurer 0 Explorer 0 Win Type - Total 0 Types 0/0/0/0/0/0/0/0/0 Lore% 20 Gallery% 15 Achievement% 17 Wizard Run 0 Options --------- ASCII 1 Keyboard 1 Movement Numpad Keybinds 0 Fullscreen 1 Font 18/TerminusBold Map View 76x50 Tactical HUD 1 Map Filters NONE Filters NONE Steam 1 RUN: a32ec71f-c4e4-44e0-8c72-cb1e5eb21ba0